Cogmind - Beta 15 @@@ ROGUE MODE // 2025.06.30 @ 12:46:06 Player: Minty Result: Self-destructed Performance ------------- Evolutions (6) 3000 Regions Visited (11) 2200 Robots Destroyed (68) 340 Value Destroyed (2772) 2772 Prototype IDs (35) 700 Alien Tech Used (2) 400 Bonus (1739) 1739 TOTAL SCORE: 11151 Bonus ------- Follower Combat Kills 639 Registered with UFD 300 Met Optimus in HQ 500 Met Zhirov 300 Cogmind --------- Core Integrity 839/1150 Matter 39/300 Energy 94/100 System Corruption 13% Temperature Warm (139) Movement Core (550) Ox10 Location -4/Factory Parts ------- > --- POWER (2) -------- (None) > --- PROPULSION (6) --- (None) > --- UTILITY (8) ------ Improved Coolant Injector Large Storage Unit Advanced Visual Processing Unit Terrain Scan Processor Core Analyzer Improved Hacking Suite Improved System Shield > --- WEAPON (3) ------- Long-range Phase Cannon > --- INVENTORY (15) --- Advanced Energy Well (500) Matter Compressor (250) Advanced Datajack Voltaic Drivehammer (2/40) Peak State ------------ > --- POWER ------------ Backup Power VII Backup Power VII > --- PROPULSION ------- Medium Treads Advanced Heavy Siege Treads Advanced Heavy Siege Treads Flexi-carbon Leg > --- UTILITY ---------- Improved Coolant Injector Large Storage Unit Advanced Visual Processing Unit Experimental Terrain Scanner Terrain Scan Processor Core Analyzer Improved Hacking Suite Improved System Shield > --- WEAPON ----------- Railgun Dirty Datajack Voltaic Drivehammer > --- INVENTORY -------- Advanced Energy Well Matter Compressor Advanced Datajack [Rating: 119] Favorites ----------- Power Light Nuclear Core Engine Light Ion Engine Power Core Light Nuclear Core Reactor Heavy Antimatter Reactor Propulsion Flexi-carbon Leg Treads Light Treads Leg Flexi-carbon Leg Wheel Wheel Utility Large Storage Unit Device Advanced Heat Sink Storage Large Storage Unit Processor Advanced Visual Processing Unit Hackware Makeshift System Shield Protection Enhanced Scrap Shield Weapon Tesla Rifle Energy Gun Tesla Rifle Energy Cannon Phase Cannon Ballistic Gun Subdweller Machine Gun Ballistic Cannon Light Cannon Launcher Subdweller Shrapnel Launcher Special Weapon Voltaic Drivehammer Slashing Weapon Centrium Greatsword Special Melee Weapon Dirty Datajack Build | -11 -10 -10 -7 -5 -5 -5 -5 -4 -4 -4 -4 ------- Run | Yrd Mat Sub Scr Fac Upp Upp Zhi Pro Fac Was Fac Slots Evolved 12 | . . . . 10 . . . . 2 . . Power 1 | . . . . 1 . . . . . . . Propulsion 4 | . . . . 2 . . . . 2 . . Utility 6 | . . . . 6 . . . . . . . Weapon 1 | . . . . 1 . . . . . . . Parts Attached 78 | . 12 2 11 21 6 . 7 11 3 3 2 Power 8 | . 2 . 1 2 2 . 1 . . . . Engine 2 | . 1 . . 1 . . . . . . . Core 5 | . 1 . 1 1 2 . . . . . . Reactor 1 | . . . . . . . 1 . . . . Propulsion 20 | . 4 . 5 6 . . . 3 . 2 . Treads 8 | . 2 . 2 1 . . . 1 . 2 . Leg 7 | . . . . 5 . . . 2 . . . Wheel 5 | . 2 . 3 . . . . . . . . Hover . | . . . . . . . . . . . . Flight . | . . . . . . . . . . . . Utility 27 | . 4 . 1 9 2 . 3 4 3 . 1 Device 12 | . 2 . . 5 . . 1 3 1 . . Storage 2 | . 1 . . . . . 1 . . . . Processor 5 | . . . 1 1 1 . . 1 . . 1 Hackware 4 | . . . . 2 . . . . 2 . . Protection 4 | . 1 . . 1 1 . 1 . . . . Artifact . | . . . . . . . . . . . . Weapon 23 | . 2 2 4 4 2 . 3 4 . 1 1 Energy Gun 7 | . . . . 3 2 . 1 1 . . . Energy Cannon 3 | . . . 1 . . . . 1 . . 1 Ballistic Gun 2 | . . 1 . . . . . 1 . . . Ballistic Cannon 5 | . 2 1 1 1 . . . . . . . Launcher 1 | . . . 1 . . . . . . . . Special Weapon 1 | . . . 1 . . . . . . . . Impact Weapon . | . . . . . . . . . . . . Slashing Weapon 1 | . . . . . . . . . . 1 . Piercing Weapon . | . . . . . . . . . . . . Special Melee Weapon 3 | . . . . . . . 2 1 . . . Unidentified Prototypes 9 | . . . . 1 1 . 4 . . 2 1 Corrupted Parts 7 | . . . . 3 . . . 4 . . . System Corruption 35 | . . . . 7 . . . 28 . . . Parts Lost 31 | . 2 . . 1 1 . . 17 . 1 9 Power 6 | . 1 . . . 1 . . 2 . . 2 Propulsion 10 | . 1 . . . . . . 5 . . 4 Utility 5 | . . . . . . . . 4 . . 1 Weapon 10 | . . . . 1 . . . 6 . 1 2 Highest Loss Streak 13 | . 1 . . 1 1 . . 13 . 1 8 To Critical Strikes . | . . . . . . . . . . . . Average Backups 10 | . 8 10 11 10 11 12 12 10 5 5 3 Power . | . 1 2 1 . . . . . . . . Propulsion 1 | . 3 3 1 1 1 . . . . . . Utility 4 | . 2 5 5 4 3 5 6 5 2 2 2 Weapon 2 | . 1 . 2 4 5 4 3 2 1 1 . Tool/Special . | . . . . . . . . . . . . Unused Backups 24 | . 10 . 6 1 2 2 1 . . . 2 Power 3 | . 2 . 1 . . . . . . . . Propulsion 6 | . 4 . 1 1 . . . . . . . Utility 9 | . 2 . 3 . 2 . 1 . . . 1 Weapon 3 | . 2 . 1 . . . . . . . . Tool/Special 3 | . . . . . . 2 . . . . 1 Average Slot Usage (%) 90 | . 98 100 99 84 91 93 81 79 67 62 73 Engine 3 | . 9 14 4 1 . . . . . . . Core 7 | . 4 . 9 8 10 11 7 2 . . 7 Treads 10 | . 21 28 17 9 . . . 1 5 8 12 Leg 9 | . 1 . . 9 23 23 23 15 5 5 2 Wheel 2 | . 4 . 10 . . . . . . . . Device 8 | . 9 . . 16 11 11 11 11 14 14 9 Storage 8 | . 14 14 14 5 5 5 5 7 6 4 3 Processor 8 | . . . 3 6 12 17 17 17 10 10 14 Hackware 1 | . . . . 5 . . . . 9 10 10 Protection 5 | . 2 14 9 . 6 4 5 2 . . . Energy Gun 6 | . . . . 10 17 17 3 10 10 1 . Energy Cannon 1 | . . . 7 1 . . . . . . 1 Ballistic Gun 2 | . . 7 5 . . . . 1 5 4 3 Ballistic Cannon 7 | . 26 20 13 1 . . . . . . . Peak Build Rating 119 | . 12 10 35 85 85 83 86 91 71 91 119 Average Rating 51 | . 9 9 19 73 80 82 72 71 70 76 99 On Entrance 51 | 6 6 9 10 32 80 83 83 86 64 71 84 Naked Turns . | . . . . . . . . . . . . Heaviest Build 77 | 12 32 31 48 69 77 70 70 70 40 40 50 Greatest Support 188 | 20 40 40 40 78 78 78 78 83 20 108 188 Greatest Overweight (x) 9 | . 1 . 3 2 . . . 9 1 1 . Average Overweight (x) . | . . . 1 . . . . . 1 . . Largest Inventory Capacity 15 | . 15 15 15 15 15 15 15 15 15 15 15 Average Capacity 14 | . 10 15 15 15 15 15 15 15 15 12 13 Most Carried 15 | . 12 13 15 15 15 15 15 15 8 9 5 Average Carried 12 | . 8 11 13 12 13 14 14 12 7 6 3 Final Capacity 15 | 8 15 15 15 15 15 15 15 15 15 5 15 Final Carried 15 | 6 12 13 15 13 15 15 15 9 7 5 4 Class Distribution -------------------- 43% | Mutant 33% | Scavenger-Skirmisher 8% | Scavenger-Assassin 3% | Skirmisher Dominant Class ---------------- Mutant | -10/Materials Mutant | -10/Subcaves Mutant | -7/Scraptown Scavenger-Skirmisher | -5/Factory Scavenger-Skirmisher | -5/Upper Caves Scavenger-Skirmisher | -5/Upper Caves Scavenger-Skirmisher | -5/Zhirov Scavenger-Assassin | -4/Proximity Caves Scavenger-Skirmisher | -4/Factory Scavenger-Assassin | -4/Waste Hacker-Skirmisher | -4/Factory Resources | -11 -10 -10 -7 -5 -5 -5 -5 -4 -4 -4 -4 ----------- Run | Yrd Mat Sub Scr Fac Upp Upp Zhi Pro Fac Was Fac Matter Collected 3605 | 200 647 97 361 1411 410 81 147 251 . . . Remotely . | . . . . . . . . . . . . Salvage Created 4089 | . 408 82 25 956 284 324 388 1176 67 180 199 Parts 141 | . 30 2 1 35 9 11 3 36 2 2 10 Haulers Intercepted 3 | . 1 . . 2 . . . . . . . Recyclers Shooed 3 | . . . . 3 . . . . . . . Parts Field Recycled . | . . . . . . . . . . . . Retrieved Matter . | . . . . . . . . . . . . Parts Self-Destructed 71 | . . 2 . . 24 11 3 31 . . . Prevented 30 | . . . . . 9 10 . 11 . . . Kills | -11 -10 -10 -7 -5 -5 -5 -5 -4 -4 -4 -4 ------- Run | Yrd Mat Sub Scr Fac Upp Upp Zhi Pro Fac Was Fac Combat Hostiles Destroyed 50 | . 11 2 2 6 2 3 . 19 1 1 3 Guns 25 | . . 1 . 3 2 3 . 15 1 . . Cannons 13 | . 11 1 . . . . . . . . 1 AOE 7 | . . . 2 1 . . . 2 . 1 1 Classes Destroyed 18 | . 8 1 1 2 2 1 . 1 . 1 1 Worker 2 | . 1 . . 1 . . . . . . . Builder 3 | . . . . 2 . . . . . . 1 Tunneler 3 | . 2 . . . . . . . . . 1 Hauler 3 | . 1 . . 2 . . . . . . . Recycler 4 | . 2 . . 2 . . . . . . . Minesweeper 2 | . . . . . . 2 . . . . . Watcher 1 | . 1 . . . . . . . . . . Swarmer 7 | . 3 . . . . . . 4 . . . Grunt 26 | . 6 1 . 2 1 2 . 12 . . 2 Brawler 2 | . . . . . 1 . . 1 . . . Duelist 1 | . . . . . . . . 1 . . . Sentry 5 | . . 1 . 1 . 1 . 1 1 . . Hunter 3 | . . . . 3 . . . . . . . Programmer 1 | . . . . . . . . . . . 1 Compactor 1 | . . . . . . . . . . 1 . Subdweller 2 | . 2 . . . . . . . . . . Federalist 2 | . . . 2 . . . . . . . . Decomposer 1 | . . . . . . 1 . . . . . Samaritan 1 | . . . . . 1 . . . . . . Best Kill Streak 14 | . 4 2 2 3 1 2 . 14 1 1 4 Combat Bots Only 14 | . 3 2 2 2 1 2 . 14 1 1 3 Max Kills in Single Turn 1 | . 1 1 1 1 1 1 . 1 1 1 1 Gunslinging . | . . . . . . . . . . . . Exploded 1 | . . . 1 1 . . . 1 . 1 1 Melee . | . . . . . . . . . . . . Uniques/NPCs Destroyed . | . . . . . . . . . . . . Combat | -11 -10 -10 -7 -5 -5 -5 -5 -4 -4 -4 -4 -------- Run | Yrd Mat Sub Scr Fac Upp Upp Zhi Pro Fac Was Fac Hostile Shots Fired 402 | . 83 8 10 30 10 17 . 151 4 . 89 Missed 114 | . 28 2 1 8 1 6 . 44 2 . 22 Hits 288 | . 55 6 9 22 9 11 . 107 2 . 67 Melee 3 | . . . . . . . . 3 . . . Projectile 285 | . 55 6 9 22 9 11 . 104 2 . 67 Critical Strikes 14 | . . 1 . 2 . . . 7 . . 4 Part Disruptions 1 | . . . . . . 1 . . . . . Damage Taken 5878 | . 785 84 240 476 171 240 . 2336 51 116 1379 Core 933 | . 139 . 106 79 . . . 408 . . 201 Absorbed by Shields . | . . . . . . . . . . . . Redirected to Shielding 29 | . 29 . . . . . . . . . . Regen/Repaired (Parts) 339 | . . . . 6 . . . . . . 333 Core Remaining (%) 51 | 100 . . 2 . . . . 51 . . . Volleys Fired 216 | . 63 7 10 33 7 14 10 41 2 4 25 Largest 3 | . 2 2 2 3 3 3 2 3 3 1 2 Hottest 265 | . 60 60 122 195 195 195 200 265 229 35 140 Shots Fired 451 | . 125 16 12 92 21 42 20 79 6 4 34 Gun 267 | . . 9 . 78 21 42 20 70 6 4 17 Cannon 177 | . 125 7 7 14 . . . 8 . . 16 Launcher 5 | . . . 5 . . . . . . . . Special 2 | . . . . . . . . 1 . . 1 Kinetic 179 | . 125 16 8 7 . . . . 2 4 17 Thermal 98 | . . . 4 7 . . 20 47 4 . 16 Explosive . | . . . . . . . . . . . . Electromagnetic 174 | . . . . 78 21 42 . 32 . . 1 Robot Hit Streak 18 | . 6 3 3 8 4 7 16 18 8 7 5 Robot Miss Streak 6 | . 3 5 2 5 2 6 2 2 1 . 6 Penetration Max . | . . . . . . . . . . . . Secondary Targets 8 | . . . . 1 . 1 . 6 . . . Max Gunslinging Chain 1 | . . . . 1 . 1 . 1 . . . Shots Hit Robots 291 | . 68 7 3 54 11 22 18 78 6 4 20 Core Hits 157 | . 21 2 9 25 6 8 18 55 4 1 8 Critical Kills 1 | . . . . . . . . . . . 1 Critical Parts Destroyed 1 | . . . . . . . . 1 . . . Critical Strikes 5 | . 2 . . . . 1 . 1 . . 1 Meltdown 1 | . . . . . . . . . . . 1 Blast 2 | . 2 . . . . . . . . . . Corrupt 1 | . . . . . . 1 . . . . . Smash 1 | . . . . . . . . 1 . . . Melee Attacks 10 | . . . . . . . . 7 . . 3 Impact . | . . . . . . . . . . . . Slashing . | . . . . . . . . . . . . Piercing 10 | . . . . . . . . 7 . . 3 Sneak Attacks 1 | . . . . . . . . . . . 1 Combat Hostiles . | . . . . . . . . . . . . Follow-up Attacks . | . . . . . . . . . . . . Damage Inflicted 8887 | . 1229 148 478 1414 306 594 751 2567 175 95 1130 Guns 5240 | . . 99 . 1121 276 476 751 1945 175 95 302 Cannons 2049 | . 1220 49 70 201 . . . 207 . . 302 Explosions 1384 | . . . 404 75 . 51 . 373 . . 481 Melee 18 | . . . . . . . . 9 . . 9 Ramming 133 | . 9 . 4 17 30 67 . . . . 6 Kinetic 2346 | . 1220 148 444 80 . . . . 57 95 302 Thermal 2980 | . . . 30 193 . 51 751 1535 118 . 302 Explosive 308 | . . . . . . . . . . . 308 Electromagnetic 3039 | . . . . 1124 276 476 . 990 . . 173 Impact 63 | . . . . . . . . 33 . . 30 Slashing . | . . . . . . . . . . . . Piercing 18 | . . . . . . . . 9 . . 9 Highest Corruption 40 | . 2 2 . 7 7 7 7 40 . . 13 Average Corruption 8 | . 2 2 . 6 7 7 7 19 . . 6 Corruption Purged . | . . . . . . . . . . . . Corruption Blocked . | . . . . . . . . . . . . Effects 102 | . 5 7 . 7 17 21 8 32 . . 5 Message Errors 27 | . 2 1 . . 5 9 4 6 . . . Matter Fused 27 | . 2 2 . 5 5 5 . 8 . . . Heat Flow Errors 5 | . . . . 1 . . 1 2 . . 1 Energy Discharges 10 | . . . . . 4 1 2 2 . . 1 Parts Rejected 2 | . . . . . . 1 . . . . 1 Parts Fused 2 | . . . . . 1 . . 1 . . . Data Loss (minor) 15 | . . 1 . . . 5 1 6 . . 2 Data Loss (major) 3 | . . . . . 2 . . 1 . . . Misfires 5 | . . 2 . 1 . . . 2 . . . Alerts 2 | . . 1 . . . . . 1 . . . Weapon Failures 4 | . 1 . . . . . . 3 . . . Overload Shots . | . . . . . . . . . . . . Overflow Damage 175 | . 7 . . . 20 10 . 49 . . 89 Projectiles 50 | . 7 . . . . . . 33 . . 10 Explosions 95 | . . . . . . . . 16 . . 79 Melee 30 | . . . . . 20 10 . . . . . Knockbacks 10 | . 5 . . 2 . 2 . . . . 1 Impact 4 | . . . . 1 . 2 . . . . 1 Kinetic 6 | . 5 . . 1 . . . . . . . Secondary . | . . . . . . . . . . . . Self-Inflicted Damage 48 | . . . . . . . . . . . 48 Shots 1 | . . . . . . . . . . . 1 Rammed 6 | . 3 . 1 1 . . . . . . 1 Targets Rammed 14 | . 3 . 1 3 2 4 . . . . 1 Kicked 8 | . . . . 2 2 4 . . . . . Crushed . | . . . . . . . . . . . . Highest Temperature 351 | . 54 7 138 351 126 280 259 192 84 . 331 Average Temperature 87 | . 24 7 50 108 52 107 102 72 45 . 110 Received Heat Transfer 1189 | . 252 48 102 90 81 54 . 466 . . 96 Effects 6 | . . . . 4 . 2 . . . . . Shutdowns 1 | . . . . 1 . . . . . . . Energy Bleed 1 | . . . . 1 . . . . . . . Interference 2 | . . . . . . 2 . . . . . Matter Decay 1 | . . . . 1 . . . . . . . Damage (minor) 1 | . . . . 1 . . . . . . . Siege Activations . | . . . . . . . . . . . . Martial Activations . | . . . . . . . . . . . . Shielding Activations . | . . . . . . . . . . . . Robots Disrupted . | . . . . . . . . . . . . Combat Hostiles . | . . . . . . . . . . . . Robots Corrupted 6 | . . . . 2 1 2 . 1 . . . Combat Hostiles 3 | . . . . 2 . . . 1 . . . Parts Fried 26 | . . . . 12 1 5 . 5 . . 3 Impact Corruptions 11 | . . . . . 5 4 . 2 . . . Robots Melted 2 | . . . . . . . . 1 . . 1 Combat Hostiles 2 | . . . . . . . . 1 . . 1 Parts Melted 3 | . . . . . . . . 1 . . 2 Heat Transferred 4219 | . . . 37 198 . 50 1042 2422 174 . 296 Parts Sabotaged . | . . . . . . . . . . . . Parts Stolen . | . . . . . . . . . . . . Parts Stripped . | . . . . . . . . . . . . Power Chain Reactions 2 | . . . . 1 . 1 . . . . . Alert | -11 -10 -10 -7 -5 -5 -5 -5 -4 -4 -4 -4 ------- Run | Yrd Mat Sub Scr Fac Upp Upp Zhi Pro Fac Was Fac Maximum Alert Level 1 | . . . . 1 . . . . 1 . . Low Security (%) 89 | . 100 . . 72 . . . . 71 100 100 Level 1 10 | . . . . 27 . . . . 28 . . Level 2 . | . . . . . . . . . . . . Level 3 . | . . . . . . . . . . . . Level 4 . | . . . . . . . . . . . . Level 5 . | . . . . . . . . . . . . High Security . | . . . . . . . . . . . . Max Security . | . . . . . . . . . . . . Peak Influence 348 | . 190 . . 348 . . . . 208 72 103 Initial 208 | . . . . . . . . . 208 72 . Average 89 | . 103 . . 98 . . . . 192 16 41 Influence Increases 2521 | . 365 40 . 477 450 205 15 550 188 . 231 Destroy 0b10 Robot/C 1320 | . 180 40 . 120 280 160 . 460 20 . 60 Destroy 0b10 Robot/NC 115 | . 35 . . 35 5 10 15 5 . . 10 Destroy Leader 168 | . 44 . . 44 20 10 . 30 10 . 10 Allied During Kill 171 | . . . . . 130 25 . 10 6 . . Successful Hack 99 | . 75 . . . . . . . . . 24 Disable Machine 90 | . 15 . . 45 . . . . . . 30 Anti-Garrison Action 200 | . . . . 200 . . . . . . . Destroy Structure 103 | . 1 . . 18 . . . . 2 . 82 Advance Influence 150 | . . . . . . . . . 150 . . Lose Combat Pursuer 105 | . 15 . . 15 15 . . 45 . . 15 Influence Decreases 2470 | . 330 75 . 177 455 403 112 457 75 206 180 Entered New Map 452 | . . 18 . . 111 57 97 . 35 134 . Time Decay 1556 | . 310 57 . 167 294 326 15 247 40 30 70 Lost Part 300 | . 20 . . 10 10 . . 170 . . 90 Lost Ally 162 | . . . . . 40 20 . 40 . 42 20 Squads Dispatched 8 | . 2 . . 3 . . . 1 . . 2 Investigation 3 | . 1 . . 1 . . . . . . 1 Extermination . | . . . . . . . . . . . . Reinforcement 3 | . 1 . . 1 . . . . . . 1 Assault 1 | . . . . . . . . 1 . . . Garrison 1 | . . . . 1 . . . . . . . Intercept . | . . . . . . . . . . . . Searches Triggered . | . . . . . . . . . . . . Construction Impeded 1 | . . . . . . . . . . . 1 Haulers Reinforced 1 | . . . . 1 . . . . . . . Active Scanning Responses . | . . . . . . . . . . . . Cargo Convoy Interrupts . | . . . . . . . . . . . . Stealth | -11 -10 -10 -7 -5 -5 -5 -5 -4 -4 -4 -4 --------- Run | Yrd Mat Sub Scr Fac Upp Upp Zhi Pro Fac Was Fac Distress Signals 4 | . 3 . . . . . . . . . 1 Communications Jammed . | . . . . . . . . . . . . Distress Signals . | . . . . . . . . . . . . Times Spotted 115 | . 26 2 8 7 13 8 . 31 1 9 10 Peak Tracking Total 10 | . 5 2 3 2 4 3 . 10 1 5 8 Tactical Retreats 5 | . 1 . . 1 1 . . 1 . . 1 Traps | -11 -10 -10 -7 -5 -5 -5 -5 -4 -4 -4 -4 ------- Run | Yrd Mat Sub Scr Fac Upp Upp Zhi Pro Fac Was Fac Traps Triggered 4 | . 1 . . 1 . 1 . . 1 . . Indirectly . | . . . . . . . . . . . . Trap Hack Attempts . | . . . . . . . . . . . . Triggered . | . . . . . . . . . . . . Disarmed . | . . . . . . . . . . . . Reprogrammed . | . . . . . . . . . . . . Reused 2 | . . . . . . . . . . 2 . Traps Extracted . | . . . . . . . . . . . . Installed 2 | . . . . . . . . . . 2 . Triggered . | . . . . . . . . . . . . Most Traps Carried 2 | . . . 2 2 2 2 2 2 2 2 . Machines | -11 -10 -10 -7 -5 -5 -5 -5 -4 -4 -4 -4 ---------- Run | Yrd Mat Sub Scr Fac Upp Upp Zhi Pro Fac Was Fac Machines Disabled 11 | . 1 . 3 3 2 . . . . . 2 Max in Single Turn 2 | . 1 . 1 1 1 . . . . . 2 Garrison Access 1 | . . . . 1 . . . . . . . Machines Repaired . | . . . . . . . . . . . . Machines Dismantled . | . . . . . . . . . . . . Machines Sabotaged . | . . . . . . . . . . . . Overloaded Fab Kills . | . . . . . . . . . . . . Hacking | -11 -10 -10 -7 -5 -5 -5 -5 -4 -4 -4 -4 --------- Run | Yrd Mat Sub Scr Fac Upp Upp Zhi Pro Fac Was Fac Machines Accessed 13 | . 5 . 1 1 1 . 4 . . . 1 Terminals 4 | . 4 . . . . . . . . . . Fabricators . | . . . . . . . . . . . . Repair Stations 1 | . . . . . . . . . . . 1 Recycling Units 1 | . 1 . . . . . . . . . . Scanalyzers . | . . . . . . . . . . . . Garrison Access 1 | . . . . 1 . . . . . . . Total Hacks 45 | . 22 . 1 1 1 . 17 . . . 3 Successful 37 | . 15 . 1 1 1 . 17 . . . 2 Failed 7 | . 6 . . . . . . . . . 1 Catastrophic 2 | . 2 . . . . . . . . . . Database Lockouts 1 | . 1 . . . . . . . . . . Manual 15 | . 12 . . 1 . . . . . . 2 Terminals 19 | . 19 . . . . . . . . . . Fabricators . | . . . . . . . . . . . . Repair Stations 3 | . . . . . . . . . . . 3 Recycling Units 3 | . 3 . . . . . . . . . . Scanalyzers . | . . . . . . . . . . . . Garrison Access 1 | . . . . 1 . . . . . . . Terminal Hacks 31 | . 12 . 1 . 1 . 17 . . . . Record 5 | . . . . . . . 5 . . . . Part Schematic 4 | . . . . . . . 4 . . . . Robot Analysis 4 | . . . . . . . 4 . . . . Prototype ID Bank 10 | . 6 . . . . . 4 . . . . Open Door 1 | . . . . . 1 . . . . . . Emergency Access Points 1 | . 1 . . . . . . . . . . Alert Level 2 | . 2 . . . . . . . . . . Locate Traps 1 | . 1 . . . . . . . . . . Zone Layout 2 | . 2 . . . . . . . . . . Proto ID Catalog 1 | . . . 1 . . . . . . . . Fabricator Hacks . | . . . . . . . . . . . . Repair Station Hacks 1 | . . . . . . . . . . . 1 Refit 1 | . . . . . . . . . . . 1 Recycling Unit Hacks 2 | . 2 . . . . . . . . . . Process 1 | . 1 . . . . . . . . . . Retrieve Matter 1 | . 1 . . . . . . . . . . Scanalyzer . | . . . . . . . . . . . . Garrison Access Hacks . | . . . . . . . . . . . . Unauthorized Hacks 3 | . 1 . . 1 . . . . . . 1 Terminals 1 | . 1 . . . . . . . . . . Disrupt 1 | . 1 . . . . . . . . . . Fabricators . | . . . . . . . . . . . . Repair Stations 1 | . . . . . . . . . . . 1 Patch 1 | . . . . . . . . . . . 1 Recycling Units . | . . . . . . . . . . . . Scanalyzers . | . . . . . . . . . . . . Garrison Access 1 | . . . . 1 . . . . . . . Jam 1 | . . . . 1 . . . . . . . Data Cores Recovered . | . . . . . . . . . . . . Used . | . . . . . . . . . . . . Hacking Detections 6 | . 5 . . . . . . . . . 1 Full Trace Events 3 | . 3 . . . . . . . . . . Feedback Events . | . . . . . . . . . . . . Feedback Blocked . | . . . . . . . . . . . . Robot Schematics Acquired . | . . . . . . . . . . . . Robots Built . | . . . . . . . . . . . . Authchips . | . . . . . . . . . . . . Time . | . . . . . . . . . . . . Total Robot Build Rating . | . . . . . . . . . . . . Part Schematics Acquired 4 | . . . . . . . 4 . . . . Parts Built . | . . . . . . . . . . . . Authchips . | . . . . . . . . . . . . Time . | . . . . . . . . . . . . Total Part Build Rating . | . . . . . . . . . . . . Parts Repaired . | . . . . . . . . . . . . Time . | . . . . . . . . . . . . Parts Recycled . | . . . . . . . . . . . . Recycled Matter 1 | . 1 . . . . . . . . . . Retrieved Matter 1 | . 1 . . . . . . . . . . Retrieved Components . | . . . . . . . . . . . . Parts Scanalyzed . | . . . . . . . . . . . . Part Schematics Acquired . | . . . . . . . . . . . . Parts Damaged . | . . . . . . . . . . . . Bothacking | -11 -10 -10 -7 -5 -5 -5 -5 -4 -4 -4 -4 ------------ Run | Yrd Mat Sub Scr Fac Upp Upp Zhi Pro Fac Was Fac Used RIF Installer . | . . . . . . . . . . . . Robots Hacked . | . . . . . . . . . . . . Non-combat . | . . . . . . . . . . . . Combat . | . . . . . . . . . . . . Robot Hacks Applied . | . . . . . . . . . . . . Relay Couplers Released . | . . . . . . . . . . . . Fabnet Peak Effective % . | . . . . . . . . . . . . Robots Rewired 2 | . . . . . . . . 2 . . . Allies Hacked . | . . . . . . . . . . . . Hacks Repelled . | . . . . . . . . . . . . Allies | -11 -10 -10 -7 -5 -5 -5 -5 -4 -4 -4 -4 -------- Run | Yrd Mat Sub Scr Fac Upp Upp Zhi Pro Fac Was Fac Total Allies 11 | . . . . 5 . . . 4 . 1 1 Largest Group 5 | . . . . 5 5 2 1 2 2 3 1 Highest-Rated Group 238 | . . . . 238 238 94 47 79 79 125 47 Highest-Rated Ally 50 | . . . . 50 50 47 47 49 49 49 47 Total Orders . | . . . . . . . . . . . . Ally Attacks 127 | . . . . . 60 35 . 14 . 15 3 Total Damage 2797 | . . . . . 1211 507 . 351 . 655 73 Kills 22 | . . . . . 12 5 . 5 . . . Allies Corrupted . | . . . . . . . . . . . . Allies Melted 2 | . . . 2 . . . . . . . . Intel | -11 -10 -10 -7 -5 -5 -5 -5 -4 -4 -4 -4 ------- Run | Yrd Mat Sub Scr Fac Upp Upp Zhi Pro Fac Was Fac Active Infowar (turns) 3928 | . . . 350 674 644 735 299 721 85 241 179 Optics 3928 | . . . 350 674 644 735 299 721 85 241 179 Terrain 2811 | . . . . 205 644 720 299 448 80 241 174 Robot Analysis Total 4 | . . . . . . . 4 . . . . Derelict Logs Recovered 6 | . . . 3 . . 1 . 2 . . . Drone Launches . | . . . . . . . . . . . . Drone Recoveries . | . . . . . . . . . . . . Exploration | -11 -10 -10 -7 -5 -5 -5 -5 -4 -4 -4 -4 ------------- Run | Yrd Mat Sub Scr Fac Upp Upp Zhi Pro Fac Was Fac Turns Passed 6062 | . 790 405 1289 674 644 735 299 721 85 241 179 Spaces Moved 3707 | 1 394 235 885 335 461 561 198 330 37 180 90 Core 149 | . . . . . . . . 8 . 86 55 Treads 1244 | . 300 235 430 174 . . . 8 . 62 35 Legs 1785 | 1 20 . . 161 461 561 198 314 37 32 . Wheels 529 | . 74 . 455 . . . . . . . . Hover . | . . . . . . . . . . . . Flight . | . . . . . . . . . . . . Fastest Speed 50 | 120 80 160 95 120 120 120 120 120 190 50 50 Average Speed 134 | 120 142 160 139 147 120 120 120 156 190 112 92 Slowest Speed 500 | 120 160 160 225 220 120 120 120 500 190 190 160 Overloaded Moves . | . . . . . . . . . . . . Propulsion Burnouts . | . . . . . . . . . . . . Robots Hopped . | . . . . . . . . . . . . Potential Cave-ins . | . . . . . . . . . . . . Cave-ins Triggered . | . . . . . . . . . . . . Teleports 1 | . . . . . . . . . . 1 . Exploration Rate (%) 40 | 2 64 18 49 9 69 82 60 45 2 82 4 Regions Visited 11 Branch Regions 6 Pre-discovered Areas 6 | . . . 3 . . . 3 . . . . Known Exits Taken . | . . . . . . . . . . . . Unknown Exits Taken 9 | 1 1 1 1 1 1 1 1 1 . . . Scrap Searched 9 | . . . 2 . 3 3 . 1 . . . Spaces Dug 30 | . . . 30 . . . . . . . . Terrain Destroyed 153 | . . . 80 8 . 3 . 10 . . 52 Melee . | . . . . . . . . . . . . Projectile 16 | . . . 2 4 . . . 2 . . 8 AOE 137 | . . . 78 4 . 3 . 8 . . 44 Terrain Rammed . | . . . . . . . . . . . . Walls Destroyed . | . . . . . . . . . . . . Machines Disabled . | . . . . . . . . . . . . Actions | -11 -10 -10 -7 -5 -5 -5 -5 -4 -4 -4 -4 --------- Run | Yrd Mat Sub Scr Fac Upp Upp Zhi Pro Fac Was Fac Total 4351 | . 493 251 933 446 537 591 233 453 49 215 150 Wait 145 | . 4 3 3 23 41 8 2 25 5 12 19 Move 3697 | . 393 234 884 334 460 560 197 329 37 179 90 Hop . | . . . . . . . . . . . . Pick Up 53 | . 11 3 11 11 9 2 2 1 . 2 1 Fast Attach 30 | . 1 . 2 8 2 1 3 7 . 3 3 Attach 42 | . 2 2 3 12 2 . 2 8 3 3 5 Detach 20 | . . . 1 7 2 . 1 1 2 3 3 Swap 42 | . 9 . 7 5 4 . 11 5 . 1 . Drop 51 | . 7 2 11 10 8 2 5 . . 6 . Fire 216 | . 63 7 10 33 7 14 10 41 2 4 25 Melee 10 | . . . . . . . . 7 . . 3 Ram . | . . . . . . . . . . . . Kick 8 | . . . . 2 2 4 . . . . . Crush 6 | . 3 . 1 1 . . . . . . 1 Escape Stasis . | . . . . . . . . . . . . Rewire 29 | . . . . . . . . 29 . . . Trap 2 | . . . . . . . . . . 2 . Miscellaneous . | . . . . . . . . . . . . Route ------- -11/Scrapyard -10/Materials (discovered 4 exits: [*Mat x2] / [*Min] / [*Sub]) -10/Subcaves -7/Scraptown -5/Factory -5/Upper Caves -5/Upper Caves (discovered 2 exits: [*Fac] / *Zhi) -5/Zhirov -4/Proximity Caves -4/Factory -4/Waste -4/Factory History --------- Turn | Location | Event 1 | -11/Scrapyard | Discovered new exit (range 0) 1 | -11/Scrapyard | Entered Materials 109 | -10/Materials | Discovered new exit (range 16) 301 | -10/Materials | Discovered new exit (range 14) 309 | -10/Materials | Build established: Mutant 501 | -10/Materials | Derelicts attacked the area 544 | -10/Materials | Discovered new exit (range 7) 631 | -10/Materials | Core integrity fell below 50% 743 | -10/Materials | Central database locked down 780 | -10/Materials | Discovered new exit (range 8) 791 | -10/Materials | Entered Subcaves 792 | -10/Subcaves | Approached by a straggling Scientist 1127 | -10/Subcaves | Scientist uncovered a shortcut to Scraptown 1196 | -10/Subcaves | Entered Scraptown 1196 | -7/Scraptown | System corruption cleaned by C-Scrubber 1326 | -7/Scraptown | Visited UFD Registry 1326 | -7/Scraptown | Registered with UFD as "Quantumdriver" 1347 | -7/Scraptown | Heard Great Nut preacher, LISTEN AND RECITE! 1409 | -7/Scraptown | Scanned Subdweller tech in exchange for log data 1414 | -7/Scraptown | Learned location of Extension (-4) 1416 | -7/Scraptown | Learned location of Warlord (-4) 1417 | -7/Scraptown | Learned Research stockpile data 1537 | -7/Scraptown | Visited Junk Repository 1622 | -7/Scraptown | Visited Scrapoid Pod Storage 1633 | -7/Scraptown | Found Scrapoid Pod 1664 | -7/Scraptown | Visited Junk Repository 1672 | -7/Scraptown | Visited Science Guys 1750 | -7/Scraptown | Visited Infowarlord's Domain 1796 | -7/Scraptown | Found Exp. Terrain Scanner 1868 | -7/Scraptown | Visited DA-N13 Charitable Foundation 1879 | -7/Scraptown | Found DCF Scrap (29 items) 1940 | -7/Scraptown | Delivered Scrap Shield to a Scientist 1971 | -7/Scraptown | Visited Observation Area 2313 | -7/Scraptown | Met Optimus 2313 | -7/Scraptown | Accepted into 0bPrime 2396 | -7/Scraptown | Found Scrap Suit 2398 | -7/Scraptown | Civil war broke out across Scraptown 2431 | -7/Scraptown | Found Voltaic Drivehammer 2470 | -7/Scraptown | Lost 7 allies 2473 | -7/Scraptown | Discovered new exit (range 5) 2477 | -7/Scraptown | Core integrity fell below 20% 2485 | -7/Scraptown | Entered Factory 2485 | -5/Factory | Evolved 10 slots: Power x1, Propulsion x2, Utility x6, Weapon x1 2797 | -5/Factory | Garrison activated, responded to threat 3056 | -5/Factory | Scrapoid Pod released 05F05-D (x5) 3136 | -5/Factory | Discovered new exit (range 17) 3159 | -5/Factory | Entered Upper Caves 3159 | -5/Upper Caves | Accompanied by 5 allies 3161 | -5/Upper Caves | UFD Scientist delivered a prototype 3167 | -5/Upper Caves | Found Prototype Protection 3174 | -5/Upper Caves | Identified Enh. Scrap Shield 3195 | -5/Upper Caves | Build established: Scavenger-Skirmisher 3213 | -5/Upper Caves | Attracted the attention of an 0b10 base 3415 | -5/Upper Caves | Encountered a Warlord checkpoint 3794 | -5/Upper Caves | Discovered new exit (range 6) 3803 | -5/Upper Caves | Entered another Upper Caves area 3803 | -5/Upper Caves | Accompanied by 2 allies 3817 | -5/Upper Caves | Discovered new exit (range 7) 4218 | -5/Upper Caves | Encountered a Warlord checkpoint 4223 | -5/Upper Caves | Learned 12 Factory zone layouts 4386 | -5/Upper Caves | Attracted the attention of an 0b10 checkpoint 4532 | -5/Upper Caves | Discovered new exit (range 6) 4538 | -5/Upper Caves | Entered Zhirov 4538 | -5/Zhirov | Accompanied by 1 ally 4540 | -5/Zhirov | Discovered new exit (range 3) 4562 | -5/Zhirov | Met Zhirov 4588 | -5/Zhirov | Learned location of Quarantine (-2) 4588 | -5/Zhirov | Learned location of Testing (-3) 4588 | -5/Zhirov | Learned location of Command (-1) 4595 | -5/Zhirov | Zhirov requested help retrieving the SGEMP Prototype 4630 | -5/Zhirov | Found Alien Artifact 4630 | -5/Zhirov | Identified Integrated Reactor 4630 | -5/Zhirov | Installed Integrated Reactor, increased core energy generation (+10) 4647 | -5/Zhirov | Found Alien Artifact 4837 | -5/Zhirov | Entered Proximity Caves 4837 | -4/Proximity Caves | Accompanied by 1 ally 4929 | -4/Proximity Caves | Spotter reported a threat 5070 | -4/Proximity Caves | Build established: Scavenger-Assassin 5142 | -4/Proximity Caves | System corruption reached 10% 5180 | -4/Proximity Caves | Lost 4 parts (1n1u2w) 5191 | -4/Proximity Caves | Attracted the attention of an 0b10 outpost 5196 | -4/Proximity Caves | Learned Research stockpile data 5276 | -4/Proximity Caves | Destroyed 14 combat bots 5332 | -4/Proximity Caves | Lost 13 parts (2p4n3u4w) 5357 | -4/Proximity Caves | System corruption reached 30% 5537 | -4/Proximity Caves | Learned location of 1 exit from Research 5545 | -4/Proximity Caves | Discovered new exit (range 5) 5558 | -4/Proximity Caves | Entered Factory 5558 | -4/Factory | Accompanied by 2 allies 5558 | -4/Factory | Evolved 2 slots: Propulsion x2 5559 | -4/Factory | Identified exit to Research 5643 | -4/Factory | Sucked down chute 5643 | -4/Factory | Entered Waste 5644 | -4/Waste | Met a frightened Derelict 5685 | -4/Waste | Spotted C-40 Crusher 5693 | -4/Waste | 2 allies followed down the chute 5695 | -4/Waste | Spotted C-40 Crusher 5738 | -4/Waste | Spotted C-40 Crusher 5751 | -4/Waste | Lost 3 allies 5763 | -4/Waste | Destroyed C-40 Crusher 5766 | -4/Waste | Spotted C-40 Crusher 5777 | -4/Waste | Identified Transdimensional Reconstructor 5777 | -4/Waste | Warped through subspace 5787 | -4/Waste | Spotted C-40 Crusher 5802 | -4/Waste | Spotted C-40 Crusher 5848 | -4/Waste | Discovered new exit (range 14) 5884 | -4/Waste | Entered Factory 6042 | -4/Factory | System corruption reached 10% 6063 | -4/Factory | Self-destructed Last Messages --------------- 06046_ R-10 Processor collects Antigrav System. 06046_ Railgun destroyed. 06048_ U-05 Engineer builds a Wall. 06048_ R-10 Processor collects Imp. Heat Sink. 06049_ Destroyed Tesla Rifle. 06051_ R-10 Processor collects Corrupted Adv. Heat Sink. 06054_ U-05 Engineer lays Concrete. 06055_ Backup Power VII destroyed. 06055_ U-05 Engineer destroyed. 06055_ U-05 Engineer builds a Wall. 06055_ Backup Power VII destroyed. 06056_ U-05 Engineer lays Concrete. 06056_ R-10 Processor collects Welding Torch. 06057_ ALERT: Security rotation in progress. 06057_ U-05 Engineer lays Concrete. 06058_ System corrupted: Heat flow error (+198). 06058_ Exp. Terrain Scanner destroyed. 06059_ R-10 Processor collects Lgt. Ion Engine. 06059_ U-05 Engineer lays Concrete. 06063_ R-10 Processor collects Wheel. Map ----- +----------------------------------------------------+ | ? ?? ?? ? ? ? "?"?"????????? | | ? ? ?"?? ??" ?????? | | ? ? ?? ? ? ?? ????? | | ? ? ? ? ? ? ???? | | ? ? ?? ??? ? ? ?? ? ? | | #####?##?####?## ? ####?#?## ?? | | #?##?# ? ? ? # ? ?# ? | | ###?## ! # ?? ?? # ? | | ###### + ?# ?"?"?# ??" | | ###?## """ """ # # ??""" ?? ? | | ####?# """ """ # + """?? ? ? | | ###?## """ """ # # ? ? # ? | | #### #?#### # #?? ?? #?##? | | # ####?# # ?? ? # ? | | # #?#?#### ## ## # ?#???? ? ?? ?? | | # ####### ? ??? #? | | # #??#?## ? #? ?? #???? | | # ###### ? ####?##?# ? ? | | # ##?### ? ? ?#??######?? " | | # ###?## ######+??##?######??"?" | | # ###### ### ? ? #?##?### ??" | | # #?##### # ### ???"?? ##?####? " ? | | #### ####### ! ### ""?"" ##?##### " " | | #### #### # #??# "" "?? ######?# ? " | | #### ###### #/###### ??#?#?###? " ? | | ########### #@ #??"""? ?#??##?#? ? | | ####### [# # ?""" ???#####?# ? | | #?##### ##+########%#gpR!#? ?"" ?#?###?#?#?# | | ##??## ## # # mR=# ? ? ####?####### | | ######T ## """ + + u#"##?##????#???### | | #??#### ## """ ###u ; #############?## | | #?##### ## """ ""#?# u ; ##??#?#######?# ? | | #?##?## ## """### u ### #?##?#####?### ?? | | #??#?## # """ R"### #?## ##?###?### ?# ?? | | ####??# # """ """####+####??# ##?###?##?##??? | | ???####### # """ ""##?# #?##?###########?##? ?? | | ##?#?##### # #?## #######?##?## ? ?#??? | | ######?### ###########?###?###?#???### ? #? ?? | | #?## ##?##? ? ? ? ? ?? ###?? ? ?## ? | | ? "?" #?## ##??## ? """ """ ?""??###? #? ? | | ?"""?#?## ##?# """ "?" "?? ####? ? ##??? | | "?"?#### ##?#? ?"" """ ?"" ##### #???? | | ? + ####? ? ? ?#### ? ??? | | "? ??? #### ??"" ""? """?##### ?? ?#?? | | R" # ?!! ?### ? "?" ""? "?? ?#??# ?#???? | | ?? # !! #### ? """?""? """ ###?#?? ??#?#?? | | ? ? ? ####? ? #?### ? ?#?#?? | | ##?#?## ?? ? #?#####?####+###?##?###?#??? ?#???? | | ????? ?? ? ?? ? ?#?####?#?#????#????? | | #???#?###?#? ? ?? ? ? ? ? ????? | +----------------------------------------------------+ Best States ------------- Heat Dissipation 78 Coolant Potential 80 Energy Generation 44 Energy Capacity 600 Matter Stores 300 Matter Capacity 300 Sight Range 20 Terrain Scan Range 30 Terrain Scan Density 85 Armor Coverage 1025 Weapon Shielding 33 Evasion (%) 70 Targeting Accuracy 8 Core Analysis 6 Recoil Reduction 5 Offensive Hacking 12 Defensive Hacking 23 Item Schematics ----------------- Assault Drone Bay | -5/Zhirov | Free Exp. Heat Sink | -5/Zhirov | Free Exp. Optical Array | -5/Zhirov | Free Imp. Arc Thrower | -5/Zhirov | Free Robot Schematics ------------------ None Fabricated ------------ Nothing Repaired ---------- Nothing Alien Tech Used ----------------- Integrated Reactor Transdimensional Reconstructor Achievements -------------- None Challenges ------------ None Game ------ Seed ZhirovDirtyProtomatter Manual? 0 Play Time 00:39:15 Cumulative 1134.2 hours Start 2025.06.30 @ 00:02:04 End 2025.06.30 @ 12:46:06 Sessions 3 Manual Loads 0 Difficulty Rogue Special Mode None Game No. 1393 Rogue 1109 Adventurer 124 Explorer 160 Win Type - Total 50 Types 36/0/8/4/1/0/0/1/0/0 Lore% 92 Gallery% 88 Achievement% 81 Wizard Run 0 Options --------- Layout 0 ASCII 0 Keyboard 1 Movement Numpad Keybinds 0 Fullscreen 2 Font 18/X11 Map View 76x50 Zoom Use 0% Tactical HUD 1 Map Filters NONE Filters NONE Steam 1 RUN: edfc7b9b-f5ae-41ba-b4b9-26acd1110f90